{"text_format":"3","workbook":"xlsx","n_sheets":1,"sheets":["таблица 1"],"not_rendered":{"defined_names":1},"read":"whole","date_system":"1900"}

{"sheet":"таблица 1","index":0,"n_rows":56,"n_cols":12,"rows_kept":56,"merged":[[0,7,1,7],[2,0,3,7],[4,0,4,7],[5,0,5,7],[6,0,6,7],[8,0,9,0],[8,1,9,1],[8,2,9,2],[8,3,9,3],[8,4,9,4],[8,5,8,6],[8,7,9,7],[11,0,11,7],[17,0,17,7],[21,0,21,7],[34,0,34,7],[38,0,38,7],[42,0,42,7],[46,0,46,7],[55,0,55,7],[56,0,56,7]]}
[{"$nulls":7},"Приложение 1  к отчету                                                            "]
[]
["Отчет об исполнении целевых показателей муниципальной программы города Усолье-Сибирское"]
[]
["Муниципальная программа «Развитие образования» на 2019-2027 годы"]
["                       (далее - муниципальная программа)"]
["за 2025 год"]
[]
["№ п/п","Наименование целевого показателя","Ед. изм.","Плановое значение на                                 2025 год","Фактическое Значение за отчетный период","Отклонение фактического значения от планового",null,"Обоснование причин отклонения (при отклонении на +/- 5%)"]
[{"$nulls":5},"-/+","%"]
[1,2,3,4,5,6,7,8]
["Муниципальная программа города Усолье-Сибирское «Развитие образования» на 2019-2027 годы"]
["1.","Доля детей от 1 года до 8 лет, охваченных дошкольным образованием от общего числа детей, в возрасте от 1 года до 8 лет","%",56.3,56.3,{"$f":"E13-D13","v":0},{"$f":"F13/D13","v":{"v":0,"d":"0.00%"}},null,{"$f":"E13/D13","v":{"v":1,"d":"1.00"}}]
["2.","Доля успевающих учеников общеобразовательных учреждений в общем контингенте обучающихся общеобразовательных учреждений","%",99.7,99.7,{"$f":"E14-D14","v":0},{"$f":"F14/D14","v":{"v":0,"d":"0.00%"}},null,{"$f":"E14/D14","v":{"v":1,"d":"1.00"}}]
["3.","Доля детей, получающих услуги дополнительного образования, в общей численности детей в возрасте 5-18 лет","%",71,71,{"$f":"E15-D15","v":0},{"$f":"F15/D15","v":{"v":0,"d":"0.00%"}},null,{"$f":"E15/D15","v":{"v":1,"d":"1.00"}}]
["4.","Доля детей, охваченных отдыхом и оздоровлением в каникулярный период, в общей численности детей в возрасте 7-18 лет","%",17.9,17.9,{"$f":"E16-D16","v":0},{"$f":"F16/D16","v":{"v":0,"d":"0.00%"}},null,{"$f":"E16/D16","v":{"v":1,"d":"1.0"}}]
["5.","Доля образовательных организаций, вовлеченных в реализацию национального проекта «Образование»","%",100,100,{"$f":"E17-D17","v":0},{"$f":"F17/D17","v":{"v":0,"d":"0.00%"}},null,{"$f":"E17/D17","v":1},{"$f":"I17+I15+I14+I13+I16","v":{"v":5,"d":"5.000"}},{"$f":"J17/5","v":{"v":1,"d":"1.00"}}]
["Подпрограмма 1. «Развитие дошкольного образования города Усолье-Сибирское» на 2019-2027 годы"]
["1.1.","Доля детей от 1 года до 8 лет, охваченных дошкольным образованием от общего числа детей, в возрасте от 1 года до 8 лет","%",56.3,56.3,{"$f":"E19-D19","v":0},{"$f":"F19/D19","v":{"v":0,"d":"0.00%"}},null,{"$f":"E19/D19","v":{"v":1,"d":"1.00"}}]
["1.2.","Удельный вес числа дошкольных образовательных учреждений, в которых проведен выборочный капитальный ремонт, в общем числе дошкольных образовательных учреждений, здания которых требуют выборочного капитального ремонта","%",{"v":0,"d":"0.0"},{"v":0,"d":"0.0"},{"$f":"E20-D20","v":0},{"v":0,"d":"0.00%"},null,{"v":0,"d":"0.00"},{"$f":"I19+I20+I21","v":{"v":2,"d":"2.00"}},{"$f":"J20/2","v":{"v":1,"d":"1.00"}},"подпрограмма 1"]
["1.3.","Количество дошкольных организаций, реализующих инициативные проекты на территории города Усолье-Сибирское","ед.",5,5,{"$f":"E21-D21","v":0},{"$f":"F21/D21","v":{"v":0,"d":"0.00%"}},null,{"$f":"E21/D21","v":1}]
["Подпрограмма 2. «Развитие начального общего, основного общего, среднего общего образования \nгорода Усолье-Сибирское» на 2019-2027 годы\n"]
["2.1.","Доля успевающих учеников общеобразовательных учреждений в общем контингенте обучающихся общеобразовательных учреждений","%",99.7,99.7,{"$f":"E23-D23","v":0},{"$f":"F23/D23","v":{"v":0,"d":"0.00%"}},null,{"$f":"E23/D23","v":1}]
["2.2.","Доля  обучающихся по новым федеральным государственным образовательным стандартам в общей численности обучающихся муниципальных общеобразовательных учреждений","%",100,100,0,{"v":0,"d":"0.00%"},null,{"$f":"E24/D24","v":1}]
["2.3.","Удельный вес числа общеобразовательных учреждений, в которых проведен выборочный капитальный ремонт, в общем числе общеобразовательных учреждений, здания которых требуют выборочного капитального ремонта","%",0,0,0,{"v":0,"d":"0.00%"},null,0]
["2.4.","Количество обучающихся, воспользовавшихся услугами общественного транспорта в целях доступности получения услуги начального общего, основного общего, среднего общего образования","чел.",2700,2894,194,{"$f":"F26/D26","v":{"v":0.07185185185185185,"d":"7.19%"}},"Увеличение количества детей, воспользовавшихся услугами общественного транспорта",{"$f":"E26/D26","v":{"v":1.0718518518518518,"d":"1"}}]
["2.5.","Доля детей, обеспеченных бесплатным питьевым молоком, в общем количестве детей, нуждающихся в обеспечении бесплатным питьевым молоком.","%",0,0,0,{"v":0,"d":"0.00%"},null,0]
["2.6.","Доля обучающихся, получающих начальное общее образование в государственных и муниципальных образовательных организациях, получающих бесплатное горячее питание, к общему количеству обучающихся, получающих начальное общее образование в государственных и муниципальных образовательных организациях.","%",100,100,0,{"v":0,"d":"0.00%"},null,1]
["2.7.","Доля педагогических работников общеобразовательных организаций, получивших вознаграждение за классное руководство, в общей численности педагогических работников такой категории.","%",100,100,0,{"v":0,"d":"0.00%"},null,{"$f":"E29/D29","v":1},{"$f":"I23+I24+I26+I28+I29+I30+I32+I33+I34","v":{"v":9.071851851851852,"d":"9"}},{"$f":"J29/9","v":{"v":1.00798353909465,"d":"1.0"}},"подпрограмма 2"]
["2.8.","Количество общеобразовательных организаций, обеспеченных учебниками и учебными пособиями, а так же учебно-методическими материалами, необходимыми для реализации образовательных программ.","ед.",5,5,0,{"v":0,"d":"0.00%"},null,{"$f":"E30/D30","v":1}]
["2.9.","Количество объектов, в которых выполнены мероприятия по капитальному ремонту спортивных площадок (стадионов) и (или) благоустройству территорий муниципальных общеобразовательных организаций в городе Усолье-Сибирское, в которых созданы школьные спортивные клубы","ед.","-","-","-","-",null,{"$f":"E31/D31","v":{"$error":"#VALUE!"}}]
["2.9.","Доля общеобразовательных организаций, в которых введена должность советник директора по взаимодействия с детскими общественными объединениями в государственных и муниципальных общеобразовательных организациях города Усолье-Сибирское","%",100,100,0,{"v":0,"d":"0.00%"},null,1]
["2.10.","Количество общеобразовательных организаций, реализующих инициативные проекты на территории города Усолье-Сибирское","ед.",4,4,0,{"v":0,"d":"0.00%"},null,1]
["2.11.","Доля общеобразовательных учреждений, оснастивших предметные кабинеты оборудованием, средстами обучения и воспитания","%",71,71,0,{"v":0,"d":"0.00%"},null,1]
["Подпрограмма 3. «Развитие дополнительного образования города Усолье-Сибирское» на 2019-2027 годы"]
["3.1.","Доля детей, получающих услуги дополнительного образования, в общей численности детей в возрасте 5-18 лет","%",71,71,{"$f":"E36-D36","v":0},{"$f":"F36/D36","v":{"v":0,"d":"0.00%"}},null,{"$f":"E36/D36","v":1}]
["3.2.","Доля детей в возрасте от 5 до 18 лет, имеющих право на получение дополнительного образования в рамках системы персонифицированного финансирования в общей численности детей в возрасте от 5 до 18 лет.","%",25,25,{"$f":"E37-D37","v":0},{"$f":"F37/D37","v":{"v":0,"d":"0.00%"}},null,{"$f":"E37/D37","v":1},{"$f":"I37+I36+I38","v":{"v":3,"d":"3.0"}},{"$f":"J37/3","v":1},"подпрограмма 3"]
["3.3.","Количество организаций дополнительного образования, реализующих инициативные проекты/проекты народных инициатив на территории города Усолье-Сибирское","ед.",1,1,{"$f":"E38-D38","v":0},{"$f":"F38/D38","v":{"v":0,"d":"0.00%"}},null,{"$f":"E38/D38","v":1}]
["Подпрограмма 4. «Организация отдыха и занятости детей в каникулярное время» на 2019-2027 годы"]
["4.1.","Количество детей, охваченных отдыхом в детских оздоровительных лагерях","чел.",1140,1094,{"$f":"E40-D40","v":-46},{"$f":"F40/D40","v":{"v":-0.04035087719298246,"d":"-4.04%"}},"Уменьшение количества детей в ДОЛ \"Юность\".",{"$f":"E40/D40","v":{"v":0.9596491228070175,"d":"0.96"}}]
["4.2.","Количество детей, охваченных отдыхом в лагерях с дневным пребыванием детей","чел.",1015,1015,{"$f":"E41-D41","v":0},{"$f":"F41/D41","v":{"v":0,"d":"0.00%"}},null,{"$f":"E41/D41","v":{"v":1,"d":"1.00"}}]
["4.3.","Количество молодежи и несовершеннолетних, в том числе состоящих на учете в общеобразовательных учреждениях и правоохранительных органах, охваченных трудовой занятостью в каникулярное время","чел.",150,170,{"$f":"E42-D42","v":20},{"v":0.13333333333333333,"d":"13.33%"},"Увеличение количества детей, охваченных трудовой занятостью в каникулярное время",{"$f":"E42/D42","v":{"v":1.1333333333333333,"d":"1.1"}},{"$f":"I40+I41+I42","v":{"v":3.092982456140351,"d":"3.09"}},{"$f":"J42/3","v":{"v":1.0309941520467836,"d":"1.03"}},"подпрограмма 4"]
["Подпрограмма 5. «Обеспечение организационных, информационных и методических профессиональных потребностей педагогических и руководящих работников образовательных учреждений»"]
["5.1.","Доля педагогических работников образовательных учреждений, имеющих аттестацию, в общей численности педагогических работников образовательных учреждений  ","%",59,59,{"$f":"E44-D44","v":0},{"$f":"F44/D44","v":{"v":0,"d":"0.00%"}},null,{"$f":"E44/D44","v":1}]
["5.2.","Удельный вес числа образовательных учреждений, обеспечивающих предоставление нормативно закрепленного перечня сведений о своей деятельности на официальных сайтах, в общем числе образовательных учреждений ","%",100,100,{"$f":"E45-D45","v":0},{"$f":"F45/D45","v":{"v":0,"d":"0.00%"}},null,{"$f":"E45/D45","v":1},{"$f":"I44+I45+I46","v":3},{"$f":"J45/3","v":{"v":1,"d":"1.00"}},"подпрограмма 5"]
["5.3.","Количество муниципальных образовательных учреждений, охваченных организационно - управленческими, информационно-методическими услугами","ед.",44,44,{"$f":"E46-D46","v":0},{"$f":"F46/D46","v":{"v":0,"d":"0.00%"}},null,{"$f":"E46/D46","v":1}]
["Подпрограмма 6. «Обеспечение условий реализации национального проекта «Образование» на муниципальном уровне» на 2020-2027 годы"]
["6.1.","Доля детей в возрасте от 5 до 18 лет, охваченных дополнительным образованием.","%",71,71,{"$f":"E48-D48","v":0},{"$f":"F48/D48","v":{"v":0,"d":"0.00%"}},null,{"$f":"E48/D48","v":{"v":1,"d":"1.00"}}]
["6.2.","Доля учителей общеобразовательных организаций, вовлеченных в национальную систему профессионального роста педагогических работников.","%",36,42,{"$f":"E49-D49","v":6},{"$f":"F49/D49","v":{"v":0.16666666666666666,"d":"16.67%"}},"В 2025 году увеличилось количество учителей, получивших и подтвердивших высшую квалификационную категорию",{"$f":"E49/D49","v":{"v":1.1666666666666667,"d":"1.17"}}]
["6.3.","Доля образовательных организаций, расположенных на территории города Усолье-Сибирское, в которых внедрена целевая модель цифровой образовательной среды в образовательных организациях, реализующих образовательные программы общего образования","%",100,100,0,{"$f":"F50/D50","v":{"v":0,"d":"0.00%"}},null,1]
["6.4.","Доля муниципальных образовательных организаций, в которых обновлено содержание и методы обучения предметной области «Технология» и других предметных областей.","%",71.4,71.4,0,{"v":0,"d":"0.00%"},null,{"v":1,"d":"1.00"},null,{"$f":"J51/8","v":{"v":0,"d":"0.0"}}]
["6.5.","Количество услуг психолого – педагогической, методической и консультативной помощи родителям (законным представителям) детей, а также гражданам, желающим принять на воспитание в свои семьи детей, оставшихся без попечения родителей.","ед.",502,889,387,{"v":0.7709163346613546,"d":"77.09%"},"Увеличение количества услуг психолого – педагогической, методической и консультативной помощи родителям (законным представителям) детей, а также гражданам, желающим принять на воспитание в свои семьи детей, оставшихся без попечения родителей",{"v":1.7709163346613546,"d":"1.8"}]
["6.6.","Доля обучающихся общеобразовательных организаций города Усолье – Сибирское, вовлеченных в профориентационную деятельность.","%",100,100,0,{"v":0,"d":"0.00%"},null,{"v":1,"d":"1.00"}]
["6.7.","Доступность дошкольного образования для детей в возрасте до трех лет.","%",100,100,0,{"v":0,"d":"0.00%"},null,1]
["6.8.","Количество граждан города Усолье-Сибирское, ежегодно проходящих обучение по программам непрерывного образования (дополнительным образовательным программам и программам профессионального обучения) в образовательных организациях высшего образования, профессиональных образовательных организациях, организациях дополнительного профессионального образования.","чел.",945,1081,{"$f":"E55-D55","v":136},{"$f":"F55/D55","v":{"v":0.1439153439153439,"d":"14.39%"}},"В связи с выделением субвенции из федерального бюджета на обучение педагогических работников, число педагогов прошедших КПК резко увеличилось в 2025 году.",{"v":1.143915343915344,"d":"1.1"}]
["                                             Мэр города                                                          М.В. Торопкин"]